Cogmind - Beta 15 X1 @@@ ROGUE MODE // 2024.11.13 @ 01:07:20 Player: cptwinky Result: Destroyed by S-43 Plague with Heavy Machine Gun Performance ------------- Evolutions (8) 4000 Regions Visited (16) 3200 Robots Destroyed (195) 975 Value Destroyed (9414) 9414 Prototype IDs (56) 1120 Alien Tech Used (2) 400 Bonus (2685) 2685 TOTAL SCORE: 21794 Bonus ------- High Alert Combat Kills 325 Follower Combat Kills 60 Met Zhirov 300 Acquired SGEMP 2000 Cogmind --------- Core Integrity 0/1450 Matter 300/300 Energy 100/100 System Corruption 44% Temperature Hot (247) Movement Core (50) Location -2/Research Parts ------- > --- POWER (3) -------- (None) > --- PROPULSION (6) --- (None) > --- UTILITY (11) ----- Hacking Suite System Shield > --- WEAPON (3) ------- (None) > --- INVENTORY (5) ---- Experimental Cooling System Improved Component Analysis Suite SGEMP Prototype Peak State ------------ > --- POWER ------------ Quantum Reactor Quantum Reactor Quantum Reactor > --- PROPULSION ------- Enhanced Flexi-carbon Leg Advanced Myomer Leg Improved Thunder Leg Centrium Leg Centrium Leg High-density Centrium Leg > --- UTILITY ---------- Large Storage Unit Advanced Signal Interpreter Core Analyzer Advanced Transmission Jammer Advanced Phase Shifter SHELL Armor Advanced Shield Generator Improved Hacking Suite System Shield > --- WEAPON ----------- Backup Laser III Plasma Lance Enhanced Force Lance > --- INVENTORY -------- Experimental Cooling System Experimental Energy Well Advanced Sensor Array AEGIS Remote Shield Improved Component Analysis Suite Transdimensional Reconstructor Cooled Proton Cannon Enhanced Nova Cannon Improved Potential Cannon Hypervelocity Railgun Advanced Micro-nuke Launcher Improved Plasma Cutter SGEMP Prototype [Rating: 181] Favorites ----------- Power Light Antimatter Reactor Engine Subdweller Power Source Power Core Light Fission Core Reactor Light Antimatter Reactor Propulsion Combat Gravmag System Treads Light Treads Leg Myomer Leg Wheel Wheel Hover Unit Combat Gravmag System Flight Unit Cooled Nuclear Pulse Thruster Utility Advanced Signal Interpreter Device Advanced Transmission Jammer Storage Medium Storage Unit Processor Advanced Signal Interpreter Hackware Hacking Suite Protection Improved Medium Armor Plating Weapon Power Sword Energy Gun Subdweller Laser Energy Cannon Cooled Proton Cannon Ballistic Gun Assault Rifle Ballistic Cannon Battle Cannon Launcher Scatter Rocket Array Impact Weapon Makeshift Hammer Slashing Weapon Power Sword Piercing Weapon Lance Special Melee Weapon Improved Datajack Build | -11 -10 -10 -10 -7 -7 -5 -5 -5 -5 -4 -4 -4 -4 -3 -3 -2 ------- Run | Yrd Mat Min Sub Rec Scr Fac Upp Upp Zhi Pro Fac Upp Upp Res Tes Res Slots Evolved 16 | . . . . . . 10 . . . . 2 . . 2 . 2 Power 2 | . . . . . . 1 . . . . . . . 1 . . Propulsion 4 | . . . . . . 3 . . . . 1 . . . . . Utility 9 | . . . . . . 6 . . . . 1 . . 1 . 1 Weapon 1 | . . . . . . . . . . . . . . . . 1 Parts Attached 221 | 6 1 4 5 . . 51 9 8 5 1 47 1 3 3 46 31 Power 43 | 1 . 1 1 . . 6 3 1 1 . 9 . . . 10 10 Engine 14 | 1 . 1 1 . . 3 1 . . . 2 . . . 1 4 Core 7 | . . . . . . 3 2 1 . . . . . . 1 . Reactor 22 | . . . . . . . . . 1 . 7 . . . 8 6 Propulsion 53 | 2 . . 1 . . 17 . . 2 . 16 . . 1 7 7 Treads 8 | 2 . . 1 . . 3 . . . . 1 . . 1 . . Leg 31 | . . . . . . 5 . . . . 13 . . . 7 6 Wheel 1 | . . . . . . . . . . . . . . . . 1 Hover 12 | . . . . . . 9 . . 1 . 2 . . . . . Flight 1 | . . . . . . . . . 1 . . . . . . . Utility 91 | 1 1 3 . . . 20 4 6 2 1 18 . 2 1 20 12 Device 46 | . . 3 . . . 9 . 4 . 1 10 . . 1 11 7 Storage 10 | 1 1 . . . . . . 1 1 . 4 . 1 . 1 . Processor 13 | . . . . . . 4 3 . . . 3 . . . 2 1 Hackware 7 | . . . . . . 2 . . . . 1 . . . 1 3 Protection 15 | . . . . . . 5 1 1 1 . . . 1 . 5 1 Artifact . | . . . . . . . . . . . . . . . . . Weapon 34 | 2 . . 3 . . 8 2 1 . . 4 1 1 1 9 2 Energy Gun 6 | 1 . . 2 . . 1 . . . . . . . . 1 1 Energy Cannon 5 | . . . . . . . . . . . . . . . 4 1 Ballistic Gun 3 | 1 . . . . . . 1 . . . . . . 1 . . Ballistic Cannon 4 | . . . 1 . . 1 . . . . 1 . . . 1 . Launcher 3 | . . . . . . . . . . . 1 1 . . 1 . Special Weapon . | . . . . . . . . . . . . . . . . . Impact Weapon 4 | . . . . . . 3 1 . . . . . . . . . Slashing Weapon 3 | . . . . . . 1 . 1 . . . . 1 . . . Piercing Weapon 5 | . . . . . . 1 . . . . 2 . . . 2 . Special Melee Weapon 1 | . . . . . . 1 . . . . . . . . . . Unidentified Prototypes 32 | . . 1 . . . 2 . . 5 . 4 . . . 20 . Parts Lost 67 | . . 1 . . . 7 3 . . . 11 . . . 13 32 Power 18 | . . 1 . . . 1 2 . . . 4 . . . 5 5 Propulsion 11 | . . . . . . 1 . . . . 1 . . . 2 7 Utility 30 | . . . . . . 5 1 . . . 6 . . . 5 13 Weapon 8 | . . . . . . . . . . . . . . . 1 7 Highest Loss Streak 22 | . . 1 . . . 2 2 . . . 5 . . . 3 22 To Critical Strikes 1 | . . . . . . . . . . . . . . . . 1 Average Backups 11 | 4 8 9 9 10 10 9 9 9 10 10 13 14 13 14 12 11 Power . | . 1 . . . . . . . . . . . . . . . Propulsion 1 | 2 4 5 4 3 3 . 1 1 . . 1 2 1 1 . . Utility 4 | . 1 2 2 2 2 3 4 4 4 5 6 5 5 7 6 4 Weapon 3 | . 2 2 2 4 4 3 3 3 3 2 4 5 5 5 4 4 Tool/Special . | . . . . . . . . . . . . . . . . . Unused Backups 36 | . . . 3 2 5 3 1 3 1 2 6 . 2 1 4 3 Power . | . . . . . . . . . . . . . . . . . Propulsion 10 | . . . 1 1 4 . . . . . 3 . . . 1 . Utility 11 | . . . 1 . . 1 1 1 . 1 1 . . . 3 2 Weapon 13 | . . . 1 1 1 2 . 2 1 1 2 . 1 1 . . Tool/Special 2 | . . . . . . . . . . . . . 1 . . 1 Average Slot Usage (%) 93 | . 85 98 100 100 100 90 97 99 98 100 91 94 94 89 90 83 Engine 4 | . 14 13 14 14 14 4 . 4 . . . 5 5 4 1 . Core 1 | . . . . . . 4 8 5 8 5 1 . . . . . Reactor 4 | . . . . . . . . . 2 5 7 5 5 4 11 11 Treads 8 | . 28 28 28 28 28 7 . . . . . 5 5 4 2 . Leg 10 | . . . . . . 9 . . . . 15 21 21 19 20 23 Hover 7 | . . . . . . 10 29 29 29 29 11 . . . . . Device 13 | . . 12 14 14 14 10 10 8 14 16 15 26 22 22 12 10 Storage 6 | . 14 14 14 14 14 5 5 5 5 5 5 5 5 4 4 3 Processor 8 | . . . . . . 6 17 22 15 11 12 10 10 9 12 8 Hackware 4 | . . . . . . 8 5 5 5 5 5 5 5 4 4 7 Protection 3 | . . . . . . 6 5 2 2 5 2 . 3 4 7 4 Energy Gun 3 | . 14 14 14 14 14 . . . . . . . . . . 1 Ballistic Gun 1 | . 14 14 6 . . . 1 . . 1 . . . . . . Ballistic Cannon 2 | . . . 7 14 14 . . . . . . . . . . . Impact Weapon 1 | . . . . . . 7 6 4 . . . . . . . . Slashing Weapon 2 | . . . . . . 1 2 4 10 9 5 5 5 4 1 . Piercing Weapon 2 | . . . . . . . . . . . 4 4 5 4 7 7 Peak Build Rating 181 | 6 7 14 17 12 13 88 88 87 95 95 121 119 119 128 165 181 Average Rating 86 | 5 6 7 9 12 12 71 82 83 88 93 107 118 115 121 149 161 On Entrance 66 | . 6 6 8 12 12 13 88 83 87 95 94 118 118 115 124 151 Naked Turns . | . . . . . . . . . . . . . . . . . Heaviest Build 138 | 12 17 18 26 24 23 53 48 43 59 62 72 74 73 77 108 138 Greatest Support 178 | 40 40 40 40 40 40 124 72 67 70 70 135 95 95 95 155 178 Greatest Overweight (x) 14 | . . . . . . 1 1 . . . 1 . . . 1 14 Average Overweight (x) . | . . . . . . . . . . . . . . . . . Largest Inventory Capacity 15 | 8 10 10 10 10 10 10 10 10 10 10 15 15 15 15 15 15 Average Capacity 12 | 7 9 10 10 10 10 10 10 10 10 10 14 15 15 15 15 14 Most Carried 15 | 8 9 10 10 10 10 10 10 10 10 10 15 15 15 15 15 15 Average Carried 11 | 4 8 9 9 9 9 9 9 9 9 9 13 15 14 14 14 14 Final Capacity 15 | 8 10 10 10 10 10 10 10 10 10 10 15 15 15 15 15 5 Final Carried 15 | 8 9 10 10 10 10 10 10 10 10 10 15 15 15 15 15 4 Class Distribution -------------------- 37% | Mutant 20% | Scavenger-Mutant 18% | Scavenger-Gladiator 11% | Gladiator 9% | Hacker-Mutant Dominant Class ---------------- Mutant | -10/Materials Mutant | -10/Mines Mutant | -10/Subcaves Mutant | -7/Recycling Mutant | -7/Scraptown Hacker-Mutant | -5/Factory Mutant | -5/Upper Caves Gladiator | -5/Upper Caves Gladiator | -5/Zhirov Gladiator | -4/Proximity Caves Scavenger-Gladiator | -4/Factory Scavenger-Gladiator | -4/Upper Caves Scavenger-Gladiator | -4/Upper Caves Scavenger-Gladiator | -3/Research Scavenger-Mutant | -3/Testing Scavenger-Mutant | -2/Research Resources | -11 -10 -10 -10 -7 -7 -5 -5 -5 -5 -4 -4 -4 -4 -3 -3 -2 ----------- Run | Yrd Mat Min Sub Rec Scr Fac Upp Upp Zhi Pro Fac Upp Upp Res Tes Res Matter Collected 5597 | 287 66 64 747 95 97 673 330 170 126 101 928 381 89 . 823 620 Remotely 10 | . . . . . . . . . . 10 . . . . . . Salvage Created 11927 | 140 90 77 90 95 . 2515 410 149 211 . 2732 559 82 . 2274 2503 Parts 506 | 7 9 2 6 4 . 71 14 11 4 . 112 9 2 . 132 123 Haulers Intercepted 8 | . . . . . . 3 . . . . 4 . . . 1 . Recyclers Shooed 4 | . 1 . . . . 1 . . . . 1 . . . 1 . Parts Field Recycled 3 | . . . . . . . . . . . . . . . 3 . Retrieved Matter 93 | . . . . . . . . . . . . . . . 93 . Parts Self-Destructed 53 | . . . 9 . . . 23 4 4 7 . 5 1 . . . Prevented 4 | . . . . . . . 4 . . . . . . . . . Kills | -11 -10 -10 -10 -7 -7 -5 -5 -5 -5 -4 -4 -4 -4 -3 -3 -2 ------- Run | Yrd Mat Min Sub Rec Scr Fac Upp Upp Zhi Pro Fac Upp Upp Res Tes Res Combat Hostiles Destroyed 132 | . 5 2 4 . . 21 9 2 . . 22 12 1 . 24 30 Melee 93 | . . . . . . 17 4 1 . . 21 1 1 . 24 24 Guns 15 | . 5 2 3 . . . 4 1 . . . . . . . . Cannons 7 | . . . 1 . . . . . . . 1 2 . . . 3 AOE 11 | . . . . . . . . . . . . 9 . . . 2 Classes Destroyed 21 | 2 2 1 1 . . 6 . 1 . . 1 1 . . 4 2 Worker 13 | . . . . . . 3 . . . . 4 . . . 2 4 Builder 7 | . . . . . . 1 . . . . . . . . 6 . Tunneler 2 | 2 . . . . . . . . . . . . . . . . Hauler 8 | . . . . . . 3 . . . . 4 . . . 1 . Recycler 17 | 1 . . . . . 8 . . . . 5 . . . 2 1 Mechanic 1 | . . . . . . . . . . . . . . . . 1 Operator 3 | . . . . . . . . . . . . . . . 1 2 Turret 2 | . . . 2 . . . . . . . . . . . . . Watcher 9 | . 1 . . . . 3 . . . . 3 . . . 1 1 Swarmer 24 | . 5 . 4 . . 5 5 . . . 1 1 . . . 3 Grunt 31 | . . 2 . . . 3 3 . . . 3 4 . . 9 7 Brawler 2 | . . . . . . . . . . . . 2 . . . . Duelist 4 | . . . . . . . . . . . 2 2 . . . . Researcher 1 | . . . . . . . . . . . . . . . 1 . Sentry 15 | . . . . . . 4 1 . . . 4 3 1 . . 2 Hunter 20 | . . . . . . 3 . 1 . . 8 . . . 2 6 Programmer 29 | . . . . . . 4 . . . . 4 . . . 10 11 Behemoth 1 | . . . . . . . . . . . . . . . . 1 Striker 2 | . . . . . . . . . . . . . . . 2 . Alpha 7 1 | . . . . . . . . . . . . . . . 1 . Packrat 1 | . . . . . . . . . . . . 1 . . . . Thug 2 | . . . . . . 2 . . . . . . . . . . Mutant 1 | . . . . . . . . 1 . . . . . . . . Best Kill Streak 9 | 2 3 2 4 . . 6 3 1 . . 3 9 1 . 4 8 Combat Bots Only 9 | . 3 2 4 . . 5 3 1 . . 3 9 1 . 4 3 Max Kills in Single Turn 4 | 1 1 1 2 . . 1 1 1 . . 1 4 1 . 1 3 Gunslinging . | . . . . . . . . . . . . . . . . . Exploded 4 | . . . . . . . . . . . . 4 . . . 1 Melee 1 | . . . . . . 1 1 1 . . 1 1 1 . 1 1 Uniques/NPCs Destroyed . | . . . . . . . . . . . . . . . . . Combat | -11 -10 -10 -10 -7 -7 -5 -5 -5 -5 -4 -4 -4 -4 -3 -3 -2 -------- Run | Yrd Mat Min Sub Rec Scr Fac Upp Upp Zhi Pro Fac Upp Upp Res Tes Res Hostile Shots Fired 1848 | . 45 21 30 . . 269 118 21 . 6 347 28 3 . 341 619 Missed 557 | . 16 5 12 . . 62 45 8 . 2 126 17 . . 98 166 Damage Taken 25121 | . 231 210 135 . . 3972 962 220 . 81 3995 297 77 . 4929 10012 Core 2790 | . 39 38 20 . . 441 84 75 . 18 393 25 . . 264 1393 Absorbed by Shields 1427 | . . . . . . 33 226 . . . . . . . 429 739 Redirected to Shielding 260 | . . . . . . 105 . . . . 155 . . . . . Ignored by Resistances 61 | . . . . . . . . . . . 18 25 18 . . . Regen/Repaired (Parts) 5407 | . . . . . . 728 . . . . 267 . . . 1137 3275 Core Remaining (%) 68 | 100 . . . . 61 . . . . 38 . . 63 . 79 . Volleys Fired 154 | 9 20 8 7 1 . 1 31 10 . 5 11 17 . . 14 20 Largest 2 | 2 2 2 2 1 . 2 1 1 . 1 1 1 . . 1 1 Hottest 120 | 70 70 70 93 60 . 93 33 33 . 33 56 56 . . 105 120 Shots Fired 209 | 18 40 16 19 1 . 8 31 10 . 5 11 17 . . 13 20 Gun 163 | 18 40 16 12 1 . 7 31 10 . 5 9 . . . 9 5 Cannon 39 | . . . 7 . . 1 . . . . 2 13 . . 4 12 Launcher 7 | . . . . . . . . . . . . 4 . . . 3 Special . | . . . . . . . . . . . . . . . . . Kinetic 129 | 9 20 8 7 . . 1 31 10 . 5 11 13 . . 9 5 Thermal 68 | 9 20 8 12 1 . 7 . . . . . . . . 3 8 Explosive 7 | . . . . . . . . . . . . 4 . . . 3 Electromagnetic 5 | . . . . . . . . . . . . . . . 1 4 Robot Hit Streak 26 | 5 2 7 3 1 . 2 6 2 . 7 15 5 . . 14 26 Robot Miss Streak 11 | 1 6 2 3 . . 6 3 . . . 2 11 . . . 7 Penetration Max 1 | . . . . . . . 1 . . . . . . . . . Secondary Targets 2 | . 1 1 . . . . . . . . . . . . . . Max Gunslinging Chain 1 | . 1 1 . . . . . . . . . . . . . . Autonomous 11 | . . . 5 . . 6 . . . . . . . . . . Shots Hit Robots 594 | 13 17 12 11 1 . 135 20 5 8 5 108 15 5 . 115 124 Core Hits 307 | 4 7 4 12 1 . 36 9 6 3 1 52 60 2 . 49 61 Critical Kills 8 | . . . . . . . 4 1 . . . 1 . . 1 1 Critical Parts Destroyed 19 | . . . . . . 10 3 1 . 1 . 2 . . 2 . Critical Strikes 85 | . 1 1 . . . 15 8 2 . 1 9 5 1 . 25 17 Burn 2 | . 1 1 . . . . . . . . . . . . . . Destroy 17 | . . . . . . . 5 2 . 1 . 5 . . 3 1 Smash 13 | . . . . . . 10 3 . . . . . . . . . Sever 13 | . . . . . . 4 . . . . 6 . 1 . 2 . Impale 40 | . . . . . . 1 . . . . 3 . . . 20 16 Melee Attacks 800 | . . . . . . 216 43 9 9 7 147 4 6 1 186 172 Impact 177 | . . . . . . 146 28 3 . . . . . . . . Slashing 232 | . . . . . . 52 13 6 6 7 113 2 6 1 26 . Piercing 386 | . . . . . . 18 . . . . 34 2 . . 160 172 Sneak Attacks 66 | . . . . . . 18 2 . 3 . 19 1 . . 17 6 Combat Hostiles 7 | . . . . . . . 2 . . . 3 . . . . 2 Follow-up Attacks 72 | . . . . . . 24 5 . . . 17 1 . . 12 13 Damage Inflicted 27161 | 162 226 145 228 22 . 6143 498 191 415 27 5041 1910 208 . 5303 6642 Guns 1026 | 162 222 145 160 22 . 19 79 52 . 27 51 . . . 69 18 Cannons 884 | . . . 68 . . 23 . . . . 13 182 . . . 598 Explosions 2547 | . . . . . . . . . . . . 1552 . . . 995 Melee 22650 | . . . . . . 6101 419 139 415 . 4977 176 208 . 5234 4981 Ramming 54 | . 4 . . . . . . . . . . . . . . 50 Kinetic 846 | 75 121 68 68 . . 23 79 52 . 27 64 182 . . 69 18 Thermal 951 | 87 101 77 160 22 . 19 . . . . . . . . . 485 Explosive 2388 | . . . . . . . . . . . . 1552 . . . 836 Electromagnetic 272 | . . . . . . . . . . . . . . . . 272 Impact 4465 | . . . . . . 4046 419 . . . . . . . . . Slashing 7305 | . . . . . . 1597 . 139 415 . 4138 136 208 . 672 . Piercing 10880 | . . . . . . 458 . . . . 839 40 . . 4562 4981 Highest Corruption 44 | . . . . . . 10 . 1 1 3 10 10 10 . 19 44 Average Corruption 7 | . . . . . . 2 . 1 1 1 7 10 10 . 6 21 Corruption Purged 17 | . . . . . . 4 3 4 . . . . . . 6 . Corruption Blocked . | . . . . . . . . . . . . . . . . . Effects 199 | . . . . . . 18 . 1 1 5 39 24 12 . 50 49 Message Errors 48 | . . . . . . 4 . . . 2 9 7 3 . 11 12 Matter Fused 45 | . . . . . . 5 . 1 . 1 8 4 2 . 10 14 Heat Flow Errors 28 | . . . . . . 3 . . . 1 8 3 1 . 7 5 Energy Discharges 29 | . . . . . . 5 . . . 1 7 6 1 . 5 4 Parts Rejected 3 | . . . . . . . . . . . 1 . . . 2 . Parts Fused 2 | . . . . . . . . . . . . . . . . 2 Data Loss (minor) 24 | . . . . . . 1 . . 1 . 4 2 4 . 8 4 Data Loss (major) 11 | . . . . . . . . . . . 2 1 1 . 3 4 Alerts 5 | . . . . . . . . . . . . 1 . . 3 1 Misdirections 3 | . . . . . . . . . . . . . . . . 3 Weapon Failures 1 | . . . . . . . . . . . . . . . 1 . Overload Shots 3 | . . . . . . . . . . . . . . . . 3 Effects 1 | . . . . . . . . . . . . . . . . 1 Heat Surge 1 | . . . . . . . . . . . . . . . . 1 Overflow Damage 3305 | . . . . . . 1217 215 . . . 314 21 . . 681 857 Projectiles 32 | . . . . . . . . . . . . . . . . 32 Explosions 189 | . . . . . . . . . . . . 21 . . . 168 Melee 3084 | . . . . . . 1217 215 . . . 314 . . . 681 657 Knockbacks 18 | . . . 1 . . 16 1 . . . . . . . . . Impact 16 | . . . . . . 15 1 . . . . . . . . . Kinetic 2 | . . . 1 . . 1 . . . . . . . . . . Secondary . | . . . . . . . . . . . . . . . . . Self-Inflicted Damage 284 | . . . . . . . . . . . . 28 . . . 256 Shots 4 | . . . . . . . . . . . . 1 . . . 3 Rammed 22 | . 5 . 1 . . . . . . . . . . . . 16 Targets Rammed 23 | . 5 . 1 . . . . . . . . . . . . 17 Kicked 1 | . . . . . . . . . . . . . . . . 1 Crushed . | . . . . . . . . . . . . . . . . . Highest Temperature 536 | 63 81 162 8 20 . 311 . . . 172 271 212 212 . 536 370 Average Temperature 91 | 26 35 95 4 10 . 102 . . . 100 98 92 115 . 106 104 Received Heat Transfer 1768 | . . 138 24 . . 441 42 18 . . 114 48 27 . 418 498 Effects 10 | . . . . . . 4 . . . . . . . . 6 . Shutdowns 3 | . . . . . . . . . . . . . . . 3 . Energy Bleed 1 | . . . . . . 1 . . . . . . . . . . Interference 5 | . . . . . . 3 . . . . . . . . 2 . Damage (minor) 1 | . . . . . . . . . . . . . . . 1 . Siege Activations . | . . . . . . . . . . . . . . . . . Martial Activations . | . . . . . . . . . . . . . . . . . Shielding Activations . | . . . . . . . . . . . . . . . . . Robots Disrupted . | . . . . . . . . . . . . . . . . . Combat Hostiles . | . . . . . . . . . . . . . . . . . Robots Corrupted 13 | . . . . . . 11 1 . . . . . . . . 1 Combat Hostiles 6 | . . . . . . 4 1 . . . . . . . . 1 Parts Fried 21 | . . . . . . 18 1 . . . . . . . . 2 Impact Corruptions 56 | . . . . . . 46 10 . . . . . . . . . Robots Melted . | . . . . . . . . . . . . . . . . . Combat Hostiles . | . . . . . . . . . . . . . . . . . Parts Melted 6 | . 1 2 . . . . . . . . 1 . . . . 2 Heat Transferred 1659 | 259 370 296 325 25 . 75 . . . . . . . . . 309 Parts Sabotaged . | . . . . . . . . . . . . . . . . . Parts Stolen . | . . . . . . . . . . . . . . . . . Parts Stripped . | . . . . . . . . . . . . . . . . . Power Chain Reactions 1 | . . . . . . . . . . . . . . . . 1 Alert | -11 -10 -10 -10 -7 -7 -5 -5 -5 -5 -4 -4 -4 -4 -3 -3 -2 ------- Run | Yrd Mat Min Sub Rec Scr Fac Upp Upp Zhi Pro Fac Upp Upp Res Tes Res Maximum Alert Level 3 | . . . . . . 1 . . . . 3 . . . . 2 Low Security (%) 76 | 100 100 100 . 100 . 86 . . . . 38 . . 100 100 60 Level 1 11 | . . . . . . 13 . . . . 11 . . . . 38 Level 2 11 | . . . . . . . . . . . 48 . . . . . Level 3 . | . . . . . . . . . . . 1 . . . . . Level 4 . | . . . . . . . . . . . . . . . . . Level 5 . | . . . . . . . . . . . . . . . . . High Security . | . . . . . . . . . . . . . . . . . Max Security . | . . . . . . . . . . . . . . . . . Peak Influence 709 | 5 60 40 . 87 . 327 . . . . 709 . . 101 177 417 Initial 101 | . . . . 87 . . . . . . . . . 101 . 98 Average 137 | 1 9 3 . 28 . 89 . . . . 329 . . 32 68 156 Influence Increases 5593 | 15 117 50 195 10 . 915 716 121 15 75 1172 242 20 2 881 1047 Destroy 0b10 Robot/C 2740 | . 100 40 120 . . 420 240 20 . . 440 240 20 . 500 600 Destroy 0b10 Robot/NC 320 | 15 5 . . 5 . 90 . . 15 . 80 . . . 65 45 Destroy Leader 464 | . 12 10 . . . 102 20 10 . . 124 . . . 54 132 Allied During Kill 31 | . . . . . . 1 6 1 . . 15 2 . . 6 . Trap Triggered on 0b10 20 | . . . . . . 10 . . . . 10 . . . . . Successful Hack 188 | . . . . 5 . 100 . . . . 14 . . . 45 24 Select Force Hacks 30 | . . . . . . . . . . . 30 . . . . . Disable Machine 240 | . . . . . . . . . . . 120 . . . 90 30 Anti-Garrison Action 200 | . . . . . . . . . . . 200 . . . . . Destroy Structure 325 | . . . . . . 42 . . . . 124 . . 2 46 111 Partial Spotted 15 | . . . . . . 15 . . . . . . . . . . Lose Combat Pursuer 1020 | . . . 75 . . 135 450 90 . 75 15 . . . 75 105 Influence Decreases 4312 | 15 117 50 12 97 . 588 482 318 15 75 465 302 180 103 706 787 Time Decay 3622 | 15 117 50 12 97 . 528 452 318 15 75 355 302 180 103 536 467 Lost Part 650 | . . . . . . 60 30 . . . 110 . . . 130 320 Lost Ally 40 | . . . . . . . . . . . . . . . 40 . Squads Dispatched 32 | . . . . . . 7 . . . 2 9 . . . 6 8 Investigation 6 | . . . . . . . . . . . 3 . . . 2 1 Extermination 16 | . . . . . . 3 . . . . 4 . . . 4 5 Reinforcement 7 | . . . . . . 4 . . . . 1 . . . . 2 Assault 3 | . . . . . . . . . . 2 1 . . . . . Garrison . | . . . . . . . . . . . . . . . . . Intercept . | . . . . . . . . . . . . . . . . . Searches Triggered . | . . . . . . . . . . . . . . . . . Construction Impeded . | . . . . . . . . . . . . . . . . . Haulers Reinforced 1 | . . . . . . . . . . . 1 . . . . . Active Scanning Responses . | . . . . . . . . . . . . . . . . . Cargo Convoy Interrupts . | . . . . . . . . . . . . . . . . . Stealth | -11 -10 -10 -10 -7 -7 -5 -5 -5 -5 -4 -4 -4 -4 -3 -3 -2 --------- Run | Yrd Mat Min Sub Rec Scr Fac Upp Upp Zhi Pro Fac Upp Upp Res Tes Res Distress Signals 8 | . 2 . . . . 4 . . . . . . . . . 2 Communications Jammed 64 | . . . . . . . . . . 22 . . . . . 42 Distress Signals 64 | . . . . . . . . . . 22 . . . . . 42 Times Spotted 278 | . 14 2 9 . . 46 42 9 . 13 35 14 1 . 38 55 Peak Tracking Total 10 | . 5 2 6 . . 5 10 5 . 6 5 7 1 . 4 8 Tactical Retreats 29 | . . . 2 . . 5 10 2 . 3 1 . . . 2 4 Traps | -11 -10 -10 -10 -7 -7 -5 -5 -5 -5 -4 -4 -4 -4 -3 -3 -2 ------- Run | Yrd Mat Min Sub Rec Scr Fac Upp Upp Zhi Pro Fac Upp Upp Res Tes Res Traps Triggered 15 | . . . . . . 3 . . . . 6 . . . 2 4 Indirectly . | . . . . . . . . . . . . . . . . . Trap Hack Attempts 47 | . . . . . . 8 . . . . 39 . . . . . Triggered . | . . . . . . . . . . . . . . . . . Disarmed 2 | . . . . . . . . . . . 2 . . . . . Reprogrammed 6 | . . . . . . 3 . . . . 3 . . . . . Reused 2 | . . . . . . 1 . . . . 1 . . . . . Traps Extracted . | . . . . . . . . . . . . . . . . . Installed . | . . . . . . . . . . . . . . . . . Triggered 2 | . . . . . . 1 . . . . 1 . . . . . Machines | -11 -10 -10 -10 -7 -7 -5 -5 -5 -5 -4 -4 -4 -4 -3 -3 -2 ---------- Run | Yrd Mat Min Sub Rec Scr Fac Upp Upp Zhi Pro Fac Upp Upp Res Tes Res Machines Disabled 20 | . . . . . . . 3 . . . 8 . . . 7 2 Max in Single Turn 6 | . . . . . . . 1 . . . 6 . . . 1 1 Garrison Access 2 | . . . . . . . . . . . 1 . . . 1 . Machines Repaired . | . . . . . . . . . . . . . . . . . Machines Dismantled . | . . . . . . . . . . . . . . . . . Machines Sabotaged . | . . . . . . . . . . . . . . . . . Overloaded Fab Kills . | . . . . . . . . . . . . . . . . . Hacking | -11 -10 -10 -10 -7 -7 -5 -5 -5 -5 -4 -4 -4 -4 -3 -3 -2 --------- Run | Yrd Mat Min Sub Rec Scr Fac Upp Upp Zhi Pro Fac Upp Upp Res Tes Res Machines Accessed 56 | . 1 1 . 2 . 11 4 1 4 . 12 . 1 2 14 3 Terminals 27 | . 1 . . 1 . 7 1 . . . 5 . . 2 10 . Fabricators 4 | . . . . . . . . . . . . . . . 2 2 Repair Stations 6 | . . . . . . 2 . . . . 2 . . . 1 1 Recycling Units 3 | . . . . 1 . 1 . . . . 1 . . . . . Scanalyzers 4 | . . . . . . 1 . . . . 3 . . . . . Garrison Access 2 | . . . . . . . . . . . 1 . . . 1 . Total Hacks 147 | . 2 1 . 7 . 30 11 1 17 . 34 . 1 4 30 9 Successful 84 | . . 1 . 3 . 18 11 1 17 . 15 . 1 1 13 3 Failed 63 | . 2 . . 4 . 12 . . . . 19 . . 3 17 6 Catastrophic 16 | . . . . 2 . 4 . . . . 2 . . 2 5 1 Database Lockouts . | . . . . . . . . . . . . . . . . . Manual 36 | . 2 . . 4 . 6 . . . . 10 . . 1 7 6 Terminals 65 | . 2 . . 5 . 16 4 . . . 12 . . 4 22 . Fabricators 10 | . . . . . . . . . . . . . . . 4 6 Repair Stations 24 | . . . . . . 10 . . . . 8 . . . 3 3 Recycling Units 8 | . . . . 2 . 2 . . . . 4 . . . . . Scanalyzers 11 | . . . . . . 2 . . . . 9 . . . . . Garrison Access 2 | . . . . . . . . . . . 1 . . . 1 . Terminal Hacks 43 | . . 1 . 1 . 5 11 1 17 . . . 1 . 6 . Record 14 | . . . . . . . 9 . 5 . . . . . . . Part Schematic 4 | . . . . . . . . . 4 . . . . . . . Robot Schematic 1 | . . . . . . 1 . . . . . . . . . . Robot Analysis 5 | . . . . . . 1 . . 4 . . . . . . . Prototype ID Bank 4 | . . . . . . . . . 4 . . . . . . . Open Door 6 | . . 1 . . . . 2 1 . . . . 1 . 1 . Branch Access Points 1 | . . . . . . 1 . . . . . . . . . . Locate Traps 2 | . . . . . . 2 . . . . . . . . . . Recall Extermination 1 | . . . . . . . . . . . . . . . 1 . Zone Layout 4 | . . . . 1 . . . . . . . . . . 3 . Protovariant Controls 1 | . . . . . . . . . . . . . . . 1 . Fabricator Hacks 3 | . . . . . . . . . . . . . . . 3 . Load Schematic 2 | . . . . . . . . . . . . . . . 2 . Build 1 | . . . . . . . . . . . . . . . 1 . Repair Station Hacks 20 | . . . . . . 8 . . . . 8 . . . 2 2 Scan Component 10 | . . . . . . 4 . . . . 4 . . . 1 1 Repair 10 | . . . . . . 4 . . . . 4 . . . 1 1 Recycling Unit Hacks 3 | . . . . 1 . 1 . . . . 1 . . . . . Retrieve Components 3 | . . . . 1 . 1 . . . . 1 . . . . . Scanalyzer 5 | . . . . . . 2 . . . . 3 . . . . . Insert Component 3 | . . . . . . 1 . . . . 2 . . . . . Analyze 2 | . . . . . . 1 . . . . 1 . . . . . Garrison Access Hacks 1 | . . . . . . . . . . . . . . . 1 . Seal Access 1 | . . . . . . . . . . . . . . . 1 . Unauthorized Hacks 9 | . . . . 1 . 2 . . . . 3 . . 1 1 1 Terminals 4 | . . . . 1 . 1 . . . . . . . 1 1 . Botnet 4 | . . . . 1 . 1 . . . . . . . 1 1 . Fabricators 1 | . . . . . . . . . . . . . . . . 1 Fabnet 1 | . . . . . . . . . . . . . . . . 1 Repair Stations . | . . . . . . . . . . . . . . . . . Recycling Units 2 | . . . . . . 1 . . . . 1 . . . . . Reject 2 | . . . . . . 1 . . . . 1 . . . . . Scanalyzers 1 | . . . . . . . . . . . 1 . . . . . Extract 1 | . . . . . . . . . . . 1 . . . . . Garrison Access 1 | . . . . . . . . . . . 1 . . . . . Jam 1 | . . . . . . . . . . . 1 . . . . . Data Cores Recovered . | . . . . . . . . . . . . . . . . . Used . | . . . . . . . . . . . . . . . . . Hacking Detections 41 | . 1 . . 2 . 9 1 . . . 10 . . 2 13 3 Full Trace Events 5 | . . . . 1 . . . . . . 1 . . . 2 1 Feedback Events . | . . . . . . . . . . . . . . . . . Feedback Blocked . | . . . . . . . . . . . . . . . . . Robot Schematics Acquired 1 | . . . . . . 1 . . . . . . . . . . Robots Built . | . . . . . . . . . . . . . . . . . Authchips . | . . . . . . . . . . . . . . . . . Time . | . . . . . . . . . . . . . . . . . Total Robot Build Rating . | . . . . . . . . . . . . . . . . . Part Schematics Acquired 14 | . . . . . . 1 . . 4 . 6 . . . 3 . Parts Built . | . . . . . . . . . . . . . . . . . Authchips . | . . . . . . . . . . . . . . . . . Time 204 | . . . . . . . . . . . . . . . 204 . Total Part Build Rating . | . . . . . . . . . . . . . . . . . Parts Repaired 10 | . . . . . . 4 . . . . 4 . . . 1 1 Time 447 | . . . . . . 166 . . . . 224 . . . 44 13 Parts Recycled . | . . . . . . . . . . . . . . . . . Recycled Matter . | . . . . . . . . . . . . . . . . . Retrieved Matter . | . . . . . . . . . . . . . . . . . Retrieved Components 21 | . . . . 2 . 9 . . . . 10 . . . . . Parts Scanalyzed 2 | . . . . . . 1 . . . . 1 . . . . . Part Schematics Acquired 2 | . . . . . . 1 . . . . 1 . . . . . Parts Damaged . | . . . . . . . . . . . . . . . . . Bothacking | -11 -10 -10 -10 -7 -7 -5 -5 -5 -5 -4 -4 -4 -4 -3 -3 -2 ------------ Run | Yrd Mat Min Sub Rec Scr Fac Upp Upp Zhi Pro Fac Upp Upp Res Tes Res Used RIF Installer . | . . . . . . . . . . . . . . . . . Robots Hacked 3 | . . . . . . . . . 3 . . . . . . . Non-combat . | . . . . . . . . . . . . . . . . . Combat 3 | . . . . . . . . . 3 . . . . . . . Robot Hacks Applied 3 | . . . . . . . . . 3 . . . . . . . parse_system 3 | . . . . . . . . . 3 . . . . . . . Relay Couplers Released 2 | . . . . . . . . . . . 2 . . . . . Machine Destruction 2 | . . . . . . . . . . . 2 . . . . . Fabnet Peak Effective % . | . . . . . . . . . . . . . . . . . Robots Rewired . | . . . . . . . . . . . . . . . . . Allies Hacked . | . . . . . . . . . . . . . . . . . Hacks Repelled . | . . . . . . . . . . . . . . . . . Allies | -11 -10 -10 -10 -7 -7 -5 -5 -5 -5 -4 -4 -4 -4 -3 -3 -2 -------- Run | Yrd Mat Min Sub Rec Scr Fac Upp Upp Zhi Pro Fac Upp Upp Res Tes Res Total Allies . | . . . . . . . . . . . . . . . . . Largest Group . | . . . . . . . . . . . . . . . . . Highest-Rated Group . | . . . . . . . . . . . . . . . . . Highest-Rated Ally . | . . . . . . . . . . . . . . . . . Total Orders 21 | . . . 1 . . 3 3 . . . 10 1 . . 3 . RETURN 21 | . . . 1 . . 3 3 . . . 10 1 . . 3 . Ally Attacks 142 | . . . 4 . . 16 8 6 . . 50 6 7 . 45 . Total Damage 869 | . . . 15 . . 98 65 50 . . 299 47 25 . 270 . Kills 3 | . . . . . . . 3 . . . . . . . . . Allies Corrupted . | . . . . . . . . . . . . . . . . . Allies Melted . | . . . . . . . . . . . . . . . . . Intel | -11 -10 -10 -10 -7 -7 -5 -5 -5 -5 -4 -4 -4 -4 -3 -3 -2 ------- Run | Yrd Mat Min Sub Rec Scr Fac Upp Upp Zhi Pro Fac Upp Upp Res Tes Res Active Infowar (turns) 14001 | . . 237 1327 332 1287 1923 314 339 153 415 2527 662 371 350 2317 1447 Optics 171 | . . . . . . . 171 . . . . . . . . . Sensors 6857 | . . . . . . 523 . 304 75 410 1869 642 306 350 1520 858 Terrain 1013 | . . . . . . 1013 . . . . . . . . . . Seismic 3449 | . . 237 1327 332 1287 231 . 35 . . . . . . . . Jamming 9533 | . . . . . . 1169 143 73 153 415 2527 662 371 350 2317 1353 Robot Analysis Total 5 | . . . . . . 1 . . 4 . . . . . . . Derelict Logs Recovered 7 | . . . . . 2 . 2 . . 2 . 1 . . . . Drone Launches 72 | . . . 3 . . 8 9 3 . . 28 3 4 . 14 . Drone Recoveries 69 | . . . 3 . . 8 9 3 . . 28 3 4 . 11 . Exploration | -11 -10 -10 -10 -7 -7 -5 -5 -5 -5 -4 -4 -4 -4 -3 -3 -2 ------------- Run | Yrd Mat Min Sub Rec Scr Fac Upp Upp Zhi Pro Fac Upp Upp Res Tes Res Turns Passed 16870 | 143 567 636 1339 332 1287 2306 1135 703 153 415 2527 662 371 350 2317 1627 Spaces Moved 11464 | 63 310 375 510 201 795 1540 1107 830 180 520 1896 491 277 282 1280 807 Core 21 | 2 . . . . . . . . . . . . . . . 19 Treads 2401 | 61 310 375 510 201 795 149 . . . . . . . . . . Legs 4523 | . . . . . . 527 . . . . 878 491 277 282 1280 788 Wheels . | . . . . . . . . . . . . . . . . . Hover 4519 | . . . . . . 864 1107 830 180 520 1018 . . . . . Flight . | . . . . . . . . . . . . . . . . . Fastest Speed 50 | 50 160 160 160 160 160 53 53 61 61 68 62 120 120 120 120 50 Average Speed 108 | 156 160 160 160 160 160 96 62 61 62 68 97 120 120 120 122 124 Slowest Speed 750 | 160 160 160 160 160 160 190 147 61 71 68 174 120 120 120 190 750 Overloaded Moves 6 | . . . . . . 2 4 . . . . . . . . . Propulsion Burnouts . | . . . . . . . . . . . . . . . . . Robots Hopped . | . . . . . . . . . . . . . . . . . Cave-ins Triggered . | . . . . . . . . . . . . . . . . . Teleports 1 | . . . . . . . . . . . . . . . . 1 Exploration Rate (%) 45 | 4 43 59 29 29 54 35 86 72 60 73 36 47 28 9 95 18 Regions Visited 16 Branch Regions 11 Pre-discovered Areas 5 | . . . . . . . 1 . 3 1 . . . . . . Known Exits Taken 10 | . . . . . . 1 1 1 1 1 1 1 1 1 1 . Unknown Exits Taken 6 | 1 1 1 1 1 1 . . . . . . . . . . . Scrap Searched 17 | . . . . . 4 . 3 3 . 3 . 3 1 . . . Spaces Dug 117 | . . . . . . 21 16 4 . 7 15 21 1 1 23 8 Terrain Destroyed 260 | . . . . . . 21 16 4 . 7 77 48 1 1 23 62 Melee 92 | . . . . . . 21 14 3 . 7 15 . 1 1 22 8 Projectile 1 | . . . . . . . . . . . . . . . 1 . AOE 164 | . . . . . . . . . . . 62 48 . . . 54 Terrain Rammed . | . . . . . . . . . . . . . . . . . Walls Destroyed . | . . . . . . . . . . . . . . . . . Machines Disabled . | . . . . . . . . . . . . . . . . . Actions | -11 -10 -10 -10 -7 -7 -5 -5 -5 -5 -4 -4 -4 -4 -3 -3 -2 --------- Run | Yrd Mat Min Sub Rec Scr Fac Upp Upp Zhi Pro Fac Upp Upp Res Tes Res Total 14537 | 87 339 394 1023 211 816 2047 1463 1007 210 566 2370 534 306 292 1741 1131 Wait 1475 | 2 1 5 472 5 10 195 259 131 . 25 160 17 7 . 143 43 Move 11448 | 62 309 374 509 200 794 1539 1106 829 179 519 1895 490 276 281 1279 807 Hop . | . . . . . . . . . . . . . . . . . Pick Up 108 | 8 1 2 11 2 6 19 3 5 3 2 16 1 3 1 11 14 Fast Attach 185 | 6 1 2 3 . . 34 5 5 7 2 46 . 4 4 38 28 Attach 43 | . . 1 . . . 12 5 . . . 4 . . . 14 7 Detach 43 | . 1 . . . . 8 5 1 1 . 4 . . 1 20 2 Swap 136 | . . 1 5 1 . 18 9 10 4 2 36 5 3 . 25 17 Drop 190 | . 1 1 15 2 6 32 5 10 8 4 38 1 7 4 36 20 Fire 154 | 9 20 8 7 1 . 1 31 10 . 5 11 17 . . 14 20 Melee 680 | . . . . . . 181 35 6 8 7 116 3 6 1 161 156 Ram 16 | . . . . . . . . . . . . . . . . 16 Kick 1 | . . . . . . . . . . . . . . . . 1 Crush 6 | . 5 . 1 . . . . . . . . . . . . . Escape Stasis 5 | . . . . . . . . . . . 5 . . . . . Rewire . | . . . . . . . . . . . . . . . . . Trap 47 | . . . . . . 8 . . . . 39 . . . . . Miscellaneous . | . . . . . . . . . . . . . . . . . Route ------- -11/Scrapyard -10/Materials (discovered 3 exits: [*Mat] / *Min x2) -10/Mines -10/Subcaves (discovered 2 exits: [*Mat] / *Rec) -7/Recycling -7/Scraptown -5/Factory (discovered 4 exits: *Upp x2 / Ext x2) -5/Upper Caves -5/Upper Caves (discovered 2 exits: Fac / *Zhi) -5/Zhirov -4/Proximity Caves -4/Factory (discovered 4 exits: *Res x2 / *Upp / Arm) -4/Upper Caves (discovered 2 exits: *Upp / *War) -4/Upper Caves -3/Research (discovered 3 exits: Res x2 / *Tes) -3/Testing -2/Research History --------- Turn | Location | Event 2 | -11/Scrapyard | Met Revision 17 15 | -11/Scrapyard | Discovered new exit (range 14) 144 | -11/Scrapyard | Entered Materials 302 | -10/Materials | Build established: Mutant 360 | -10/Materials | Discovered new exit (range 14) 670 | -10/Materials | Discovered new exit (range 13) 692 | -10/Materials | Discovered new exit (range 16) 711 | -10/Materials | Entered Mines 1099 | -10/Mines | Found the Drone Emporium 1109 | -10/Mines | Found Prototype Device 1109 | -10/Mines | Identified Thief Drone Bay 1337 | -10/Mines | Discovered new exit (range 6) 1347 | -10/Mines | Entered Subcaves 1348 | -10/Subcaves | Approached by a straggling Scientist 1489 | -10/Subcaves | Discovered new exit (range 8) 2652 | -10/Subcaves | Discovered new exit (range 12) 2686 | -10/Subcaves | Entered Recycling 2951 | -7/Recycling | Scanned before Scraplab entrance 2973 | -7/Recycling | Entered Scraplab 2986 | -7/Recycling | Discovered new exit (range 3) 3018 | -7/Recycling | Entered Scraptown 3274 | -7/Scraptown | Heard Great Nut preacher, LISTEN AND RECITE! 3397 | -7/Scraptown | Discovered new exit (range 11) 3420 | -7/Scraptown | Scanned Subdweller tech in exchange for log data 3425 | -7/Scraptown | Learned Factory terminal intel 3426 | -7/Scraptown | Learned Research trap positions 3482 | -7/Scraptown | Visited IN-MT5's Study 3500 | -7/Scraptown | Visited Fellowship of the Rings 3525 | -7/Scraptown | Visited Shadow of the Wyrm 3580 | -7/Scraptown | Visited Cyclists 3604 | -7/Scraptown | Visited Supply Room 3679 | -7/Scraptown | Visited The Evicted 3692 | -7/Scraptown | Visited Cave Peace 4305 | -7/Scraptown | Entered Factory 4305 | -5/Factory | Evolved 10 slots: Power x1, Propulsion x3, Utility x6 4306 | -5/Factory | Loaded intel: 27 terminal locations 4664 | -5/Factory | Build established: Hacker-Mutant 5069 | -5/Factory | Allied Derelicts emerged from ambush trap array 5187 | -5/Factory | P-70 Sage assimilated allied PV-ITH(g) 5450 | -5/Factory | Repaired Imp. Heavy Armor Plating? 5516 | -5/Factory | Repaired Imp. Carbon-fiber Leg 5572 | -5/Factory | Repaired Hvy. Pick? 5633 | -5/Factory | System corruption reached 10% 6046 | -5/Factory | Repaired Imp. Medium Armor Plating 6114 | -5/Factory | Build established: Mutant 6290 | -5/Factory | Identified exit to Upper Caves 6290 | -5/Factory | Identified exit to Extension 6611 | -5/Factory | Entered Upper Caves 6688 | -5/Upper Caves | Encountered a Warlord checkpoint 6924 | -5/Upper Caves | Core integrity fell below 50% 7206 | -5/Upper Caves | Learned Factory emergency access door positions 7234 | -5/Upper Caves | Entered an active Warlord outpost 7250 | -5/Upper Caves | Learned 8 Research zone layouts 7250 | -5/Upper Caves | Learned Factory stockpile data 7250 | -5/Upper Caves | Learned Factory security intel 7250 | -5/Upper Caves | Learned Extension security intel 7460 | -5/Upper Caves | Discovered new exit (range 8) 7464 | -5/Upper Caves | Identified exit to Upper Caves 7526 | -5/Upper Caves | Build established: Gladiator 7657 | -5/Upper Caves | Attracted the attention of an 0b10 base 7715 | -5/Upper Caves | Learned Extension emergency access door positions 7715 | -5/Upper Caves | Learned location of 1 exit from Factory 7746 | -5/Upper Caves | Entered another Upper Caves area 7747 | -5/Upper Caves | Identified exit to Factory 8235 | -5/Upper Caves | Discovered new exit (range 14) 8248 | -5/Upper Caves | Identified exit to Zhirov 8449 | -5/Upper Caves | Entered Zhirov 8449 | -5/Zhirov | Discovered new exit (range 3) 8460 | -5/Zhirov | Met Zhirov 8485 | -5/Zhirov | Learned location of Quarantine (-2) 8485 | -5/Zhirov | Learned location of Testing (-3) 8485 | -5/Zhirov | Learned location of Command (-1) 8490 | -5/Zhirov | Zhirov requested help retrieving the SGEMP Prototype 8501 | -5/Zhirov | Found Alien Artifact 8501 | -5/Zhirov | Identified Integrated Reactor 8501 | -5/Zhirov | Installed Integrated Reactor, increased core energy generation (+10) 8567 | -5/Zhirov | Found Alien Artifact 8600 | -5/Zhirov | Identified exit to Proximity Caves 8602 | -5/Zhirov | Entered Proximity Caves 8770 | -4/Proximity Caves | Learned location of 1 exit from Research 8804 | -4/Proximity Caves | Derelict sapper outpost attacked 8878 | -4/Proximity Caves | Encountered a Derelict sapper outpost 9017 | -4/Proximity Caves | Entered Factory 9017 | -4/Factory | Evolved 2 slots: Propulsion x1, Utility x1 9018 | -4/Factory | Identified exit to Armory 9019 | -4/Factory | Identified exit to Research 9119 | -4/Factory | Repaired Cmb. Gravmag System 9176 | -4/Factory | Repaired Cmb. Gravmag System? 9270 | -4/Factory | Repaired Cmb. Gravmag System? 9422 | -4/Factory | Identified Transdimensional Reconstructor 9625 | -4/Factory | Repaired Cmb. Gravmag System 9731 | -4/Factory | Found Prototype Launcher 9731 | -4/Factory | Identified Scatter Rocket Array 9745 | -4/Factory | Found Scatter Rocket Array 9962 | -4/Factory | Discovered exit to Research (range 4) 10354 | -4/Factory | Lost 5 parts (1p4u) 10686 | -4/Factory | Build established: Scavenger-Gladiator 10767 | -4/Factory | First assault squad dispatched 11008 | -4/Factory | Discovered new exit (range 16) 11041 | -4/Factory | Identified exit to Upper Caves 11338 | -4/Factory | System corruption reached 10% 11544 | -4/Factory | Entered Upper Caves 11656 | -4/Upper Caves | Attracted the attention of an 0b10 checkpoint 11750 | -4/Upper Caves | Attracted the attention of an 0b10 outpost 11769 | -4/Upper Caves | Destroyed 9 combat bots 12020 | -4/Upper Caves | Learned Research emergency access door positions 12185 | -4/Upper Caves | Discovered new exit (range 13) 12200 | -4/Upper Caves | A Derelict revealed a hidden shortcut to "reach the base" 12200 | -4/Upper Caves | Identified exit to Warlord 12201 | -4/Upper Caves | Identified exit to Upper Caves 12206 | -4/Upper Caves | Entered another Upper Caves area 12264 | -4/Upper Caves | Attracted the attention of an 0b10 checkpoint 12508 | -4/Upper Caves | Discovered exit to Research (range 8) 12577 | -4/Upper Caves | Entered Research 12577 | -3/Research | Evolved 2 slots: Power x1, Utility x1 12578 | -3/Research | Identified exit to Research 12579 | -3/Research | Identified exit to Testing 12580 | -3/Research | Loaded intel: 81 trap records 12927 | -3/Research | Entered Testing 13113 | -3/Testing | Found Prototype Launcher 13113 | -3/Testing | Identified Adv. Micro-nuke Launcher 13198 | -3/Testing | Spotted Striker 13271 | -3/Testing | Spotted Striker 13307 | -3/Testing | Destroyed Striker 13330 | -3/Testing | Destroyed Striker 13357 | -3/Testing | Spotted Alpha 7 13375 | -3/Testing | Destroyed Alpha 7 13379 | -3/Testing | Found Prototype Processor 13379 | -3/Testing | Identified Exp. Target Analyzer 13393 | -3/Testing | Found Prototype Energy Gun 13393 | -3/Testing | Identified Enh. Gamma Rifle 13408 | -3/Testing | Stole the SGEMP Prototype 13584 | -3/Testing | Lost 3 parts (1p1u1w) 13612 | -3/Testing | Build established: Scavenger-Mutant 13712 | -3/Testing | Repaired Enh. Armored Leg 14099 | -3/Testing | Discovered exit to Research (range 14) 14333 | -3/Testing | Found Prototype Protection 14511 | -3/Testing | Found Prototype Protection 14511 | -3/Testing | Identified SHELL Armor 14518 | -3/Testing | Found Prototype Protection 14518 | -3/Testing | Identified Lgt. Regenerative Plating 14604 | -3/Testing | Found Prototype Device 14604 | -3/Testing | Identified AEGIS Remote Shield 14668 | -3/Testing | Found Prototype Device 14668 | -3/Testing | Identified Exp. Hardlight Generator 14846 | -3/Testing | Lost 3 allies 14875 | -3/Testing | Lost 3 parts (1p1n1u) 15042 | -3/Testing | System corruption reached 10% 15134 | -3/Testing | Found Prototype Energy Cannon 15134 | -3/Testing | Identified Imp. Potential Cannon 15138 | -3/Testing | Found Prototype Energy Cannon 15138 | -3/Testing | Identified Potential Cannon 15244 | -3/Testing | Entered Research 15244 | -2/Research | Evolved 2 slots: Utility x1, Weapon x1 15324 | -2/Research | Repaired Lrg. Storage Unit 15843 | -2/Research | System corruption reached 10% 15950 | -2/Research | Spotted B-90 Cyclops 15968 | -2/Research | Destroyed B-90 Cyclops 16729 | -2/Research | System corruption reached 30% 16810 | -2/Research | Warped through subspace 16811 | -2/Research | Core integrity fell below 50% 16838 | -2/Research | Core integrity fell below 20% 16871 | -2/Research | Destroyed by S-43 Plague with Heavy Machine Gun Last Messages --------------- 16841_ K-01 Serf collects debris. 16843_ Slammed into S-43 Plague. 16847_ Destabilizing: System corrupted (+2). 16847_ K-01 Serf collects debris. 16849_ Slammed into S-43 Plague. 16850_ System corrupted: Component data lost. 16851_ Adv. Signal Interpreter destroyed. 16851_ Slammed into S-43 Plague. 16852_ Adv. Target Analyzer destroyed. 16853_ Slammed into S-43 Plague. 16854_ Cld. Proton Cannon destroyed. 16855_ Slammed into S-43 Plague. 16856_ Destabilizing: Core damaged (-14). 16857_ Slammed into S-43 Plague. 16859_ S-43 Plague destroyed. 16861_ Slammed into S-43 Plague. 16861_ Hacking Suite destroyed. 16861_ System corrupted by crushing effect (+3). 16862_ Slammed into S-43 Plague. 16870_ System corrupted: Heat flow error (+296). Map ----- +----------------------------------------------------+ | ?????????????????????????????????????????????????? | | ?????????????????????????????????????????????????? | | ?????????????????????????????????????????????????? | | ?????????????????????????????????????????????????? | | ?????????????????????????????????????????????????? | | ?????????????????????????????????????????????????? | | ?????????????????????????????????????????????????? | | ?????????????????????????????????????????????????? | | ?????????????????????????????????????????????????? | | ?????????????????????????????????????????????????? | | ?????????????????????????????????????????????????? | | ?????????????????????????????????????????????????? | | ?????????????????????????????????????????????????? | | ?????????????????????????????????????????????????? | | ?????????????????????????????????????????????????? | | ?????????????????????????????????????????????????? | | ?????????????????????????????????????????????????? | | ?????????????????????????????????????????????????? | | ?????????????????????????????????????????????????? | | ?????????????????????????????????????????????????? | | ?????????????????????????????????????????????????? | | ?????????????????????????????????????????????????? | | ##???????????????##??###########???#?????????????? | | #?????????????? #??# %[*= #?? #?????????????? | | #????????????? #??# %=%=!] #? #?????????????? | | #???????????? ???# s%@%%*! # #?????????????? | | #??????????? ?????# %=!| + #?????????????? | | #?????????? ??????# %[% # #?????????????? | | #????????? ???????# *%=%#? #?????????????? | | ##########+####?????# ==% #???#?????????????? | | "%" #?????# #?????????????????? | | " #?????###########?????????????????? | | #?????????????????????????????????? | | ##########????????????????????????? | | ####/###### # #????????????????????????? | | ?? ???# # ##???????????????????????? | | # ?# # "" +????????????????????????? | | # ## # "" #????????????????????????? | | # ## # "T/ #????????????????????????? | | # ## # "" #????????????????????????? | | # ## # "" #????????????????????????? | | # ## # #????????????????????????? | | # ## # #????????????????????????? | | # ## ###/###############???????????????? | | ########### % +??????????????? | | ??????????# % #???????????????????? | | ??????????# #???????????????????? | | ??????????# #???????????????????? | | ??????????########+######+####???????????????????? | | ????????????# #???????????????????????????? | +----------------------------------------------------+ Best States ------------- Heat Dissipation 106 Coolant Potential 100 Energy Generation 93 Energy Capacity 965 Matter Stores 300 Matter Capacity 300 Sight Range 22 Robot Scan Range 16 Terrain Scan Range 16 Terrain Scan Density 210 Jamming Range 16 Power Amplification 30 Additional Mass Support 20 Corruption Containment 8 Armor Coverage 980 Resistance: TH 25 Propulsion Shielding 90 Phase Shifting 15 Evasion (%) 80 Melee Accuracy 16 Target Analysis 10 Core Analysis 6 Recoil Reduction 4 Offensive Hacking 20 Defensive Hacking 14 Item Schematics ----------------- Mak. Hammer | -5/Factory | Scanalyzed Assault Drone Bay | -5/Zhirov | Free Exp. Heat Sink | -5/Zhirov | Free Exp. Optical Array | -5/Zhirov | Free Imp. Arc Thrower | -5/Zhirov | Free Enh. Armored Leg | -4/Factory | Scanalyzed Machine Analyzer | -4/Factory | Extracted Imp. Melee Analysis Suite | -4/Factory | Extracted Lance | -4/Factory | Extracted Com. Matter Pod | -4/Factory | Extracted Antimatter Reactor | -4/Factory | Extracted Adv. Myomer Leg | -3/Testing | Archive Hvy. Wave Gun | -3/Testing | Archive Enh. Multireflex Exoskeleton | -3/Testing | Archive Robot Schematics ------------------ H-66 Slayer | -5/Factory | Hacked Fabricated ------------ Nothing Repaired ---------- Imp. Heavy Armor Plating | 21% | -5/Factory Imp. Carbon-fiber Leg | 34% | -5/Factory Hvy. Pick | 37% | -5/Factory Imp. Medium Armor Plating | 40% | -5/Factory Cmb. Gravmag System | 46% | -4/Factory Cmb. Gravmag System | 52% | -4/Factory Cmb. Gravmag System | 59% | -4/Factory Cmb. Gravmag System | 64% | -4/Factory Enh. Armored Leg | 45% | -3/Testing Lrg. Storage Unit | 19% | -2/Research Alien Tech Used ----------------- Integrated Reactor Transdimensional Reconstructor Achievements -------------- None Challenges ------------ None Game ------ Seed ShieldDeepEdition Manual? 0 Play Time 02:16:35 Cumulative 1721.5 hours Start 2024.11.12 @ 04:40:30 End 2024.11.13 @ 01:07:20 Sessions 5 Manual Loads 0 Difficulty Rogue Special Mode None Game No. 1163 Rogue 1159 Adventurer 4 Explorer 0 Win Type - Total 217 Types 162/11/15/9/3/1/4/8/4 Lore% 98 Gallery% 98 Achievement% 98 Wizard Run 0 Options --------- Layout 2 ASCII 0 Keyboard 1 Movement Vi Keybinds 0 Fullscreen 0 Font 24/Terminus Map View 59x48 Zoom Use 0% Tactical HUD 1 Map Filters NONE Filters NONE Steam 1 RUN: 602e64b6-6691-4c54-812f-c6e9e31d8c34